Cogmind - Beta 13 @@@ ROGUE MODE // 2024.03.09 @ 13:58:28 Player: youngster Result: Destroyed by RJ-W2G(R) with Subdweller Laser Performance ------------- Evolutions (0) 0 Regions Visited (2) 400 Robots Destroyed (36) 180 Value Destroyed (762) 762 Prototype IDs (3) 60 Alien Tech Used (0) 0 Bonus (-22) -22 TOTAL SCORE: 1380 Bonus ------- Friendly Fire -22 Cogmind --------- Core Integrity 0/250 Matter 111/300 Energy 12/125 System Corruption 7% Temperature Cool (4) Movement Treading (480) Ox4 Location -10/Subcaves Parts ------- > --- POWER (1) -------- Light Ion Engine > --- PROPULSION (2) --- Light Treads Subdweller Monowheel > --- UTILITY (2) ------ Huge Storage Unit Shield Generator > --- WEAPON (2) ------- Light Cannon Battle Cannon > --- INVENTORY (25) --- Wheel Compact Wheel Improved Terrain Scanner Seismic Detector EM Pulse Gun EM Pulse Gun EM Pulse Gun EM Pulse Gun EM Pulse Gun EM Pulse Gun EM Shotgun Subdweller Beam Cannon Subdweller Beam Cannon Assault Rifle Assault Rifle Light Assault Rifle Multitool Mining Claw Peak State ------------ > --- POWER ------------ Light Ion Engine > --- PROPULSION ------- Light Treads Compact Wheel > --- UTILITY ---------- Huge Storage Unit Shield Generator > --- WEAPON ----------- EM Shotgun EM Shotgun > --- INVENTORY -------- Light Ion Engine Light Treads Improved Terrain Scanner Seismic Detector Shield Generator EM Pulse Gun EM Pulse Gun EM Pulse Gun EM Pulse Gun EM Pulse Gun EM Pulse Gun EM Shotgun EM Shotgun Assault Rifle Assault Rifle Light Assault Rifle Light Cannon Battle Cannon Mining Claw [Rating: 12] Favorites ----------- Power Light Ion Engine Engine Light Ion Engine Propulsion Light Treads Treads Light Treads Wheel Compact Wheel Utility Huge Storage Unit Device Seismic Detector Storage Huge Storage Unit Protection Light Armor Plating Weapon EM Shotgun Energy Gun EM Shotgun Ballistic Gun Assault Rifle Ballistic Cannon Battle Cannon Slashing Weapon Mining Claw Build | -11 -10 -10 ------- Run | Yrd Mat Sub Slots Evolved . | . . . Power . | . . . Propulsion . | . . . Utility . | . . . Weapon . | . . . Parts Attached 46 | 7 15 24 Power 4 | 1 1 2 Engine 4 | 1 1 2 Core . | . . . Reactor . | . . . Propulsion 9 | 2 3 4 Treads 4 | 2 1 1 Leg . | . . . Wheel 5 | . 2 3 Hover . | . . . Flight . | . . . Utility 15 | 2 7 6 Device 10 | 1 4 5 Storage 3 | 1 2 . Processor . | . . . Hackware . | . . . Protection 2 | . 1 1 Artifact . | . . . Weapon 18 | 2 4 12 Energy Gun 8 | . 4 4 Energy Cannon . | . . . Ballistic Gun 4 | 2 . 2 Ballistic Cannon 3 | . . 3 Launcher . | . . . Special Weapon . | . . . Impact Weapon . | . . . Slashing Weapon 3 | . . 3 Piercing Weapon . | . . . Special Melee Weapon . | . . . Unidentified Prototypes . | . . . Corrupted Parts 1 | . . 1 System Corruption 7 | . . 7 Parts Lost 11 | . 3 8 Power 3 | . 1 2 Propulsion 2 | . 1 1 Utility 2 | . . 2 Weapon 4 | . 1 3 Highest Loss Streak 5 | . 1 5 To Critical Strikes . | . . . Average Slot Usage (%) 96 | . 97 96 Engine 12 | . 12 13 Treads 13 | . 17 7 Wheel 13 | . 9 19 Device 8 | . 7 10 Storage 14 | . 14 14 Protection 5 | . 6 2 Energy Gun 20 | . 23 15 Ballistic Gun 4 | . 4 4 Ballistic Cannon 2 | . . 6 Naked Turns . | . . . Heaviest Build 92 | 14 92 92 Greatest Support 40 | 40 40 30 Greatest Overweight (x) 8 | . 5 8 Average Overweight (x) 3 | . 2 3 Largest Inventory Capacity 25 | 8 25 25 Average Capacity 20 | 7 18 25 Most Carried 22 | 4 19 22 Average Carried 14 | 1 12 18 Final Capacity 25 | 8 25 25 Final Carried 19 | 4 19 18 Class Distribution -------------------- 97% | Mutant Dominant Class ---------------- Mutant | -10/Materials Mutant | -10/Subcaves Resources | -11 -10 -10 ----------- Run | Yrd Mat Sub Matter Collected 656 | 286 208 162 Remotely . | . . . Salvage Created 1191 | 106 883 202 Parts 77 | 6 53 18 Haulers Intercepted 2 | . 2 . Recyclers Shooed 2 | 1 1 . Parts Field Recycled . | . . . Retrieved Matter . | . . . Parts Self-Destructed 8 | . . 8 Prevented . | . . . Kills | -11 -10 -10 ------- Run | Yrd Mat Sub Combat Hostiles Destroyed 22 | . 17 5 Melee 1 | . 1 . Guns 17 | . 15 2 Cannons 2 | . . 2 AOE 1 | . 1 . Classes Destroyed 10 | 2 6 2 Worker 4 | . 4 . Builder 2 | . 2 . Tunneler 1 | 1 . . Hauler 2 | . 2 . Recycler 2 | 1 1 . Watcher 3 | . 3 . Swarmer 6 | . 6 . Grunt 11 | . 11 . Artisan 1 | . . 1 Subdweller 5 | . . 5 Best Kill Streak 5 | 2 5 2 Combat Bots Only 3 | . 3 2 Max Kills in Single Turn 2 | 1 2 1 Gunslinging 1 | . 1 . Exploded 1 | . 1 . Melee 1 | . 1 . Uniques/NPCs Destroyed . | . . . Combat | -11 -10 -10 -------- Run | Yrd Mat Sub Hostile Shots Fired 128 | . 64 64 Missed 23 | . 13 10 Damage Taken 1716 | . 703 1013 Core 257 | . 105 152 Absorbed by Shields 68 | . 1 67 Regen/Repaired (Parts) 107 | . 107 . Core Remaining (%) 100 | 100 . . Volleys Fired 100 | 4 62 34 Largest 2 | 2 2 2 Hottest 90 | 40 90 90 Shots Fired 193 | 8 123 62 Gun 167 | 8 123 36 Cannon 26 | . . 26 Launcher . | . . . Special . | . . . Kinetic 79 | 8 35 36 Thermal . | . . . Explosive . | . . . Electromagnetic 114 | . 88 26 Robot Hit Streak 21 | 4 8 21 Robot Miss Streak 4 | 1 4 1 Penetration Max . | . . . Secondary Targets 2 | . 1 1 Max Gunslinging Chain 1 | . 1 1 Shots Hit Robots 136 | 5 78 53 Core Hits 59 | 3 39 17 Critical Kills . | . . . Critical Parts Destroyed . | . . . Critical Strikes . | . . . Melee Attacks 11 | . . 11 Impact . | . . . Slashing 11 | . . 11 Piercing . | . . . Sneak Attacks 1 | . . 1 Combat Hostiles . | . . . Follow-up Attacks . | . . . Damage Inflicted 2190 | 50 1323 817 Guns 1554 | 50 1052 452 Cannons 365 | . . 365 Explosions 242 | . 242 . Melee . | . . . Ramming 29 | . 29 . Kinetic 759 | 50 242 467 Thermal 242 | . 242 . Explosive . | . . . Electromagnetic 1160 | . 810 350 Impact . | . . . Slashing . | . . . Piercing . | . . . Highest Corruption 7 | . . 7 Average Corruption 7 | . . 7 Corruption Purged . | . . . Corruption Blocked . | . . . Effects 1 | . . 1 Data Loss (minor) 1 | . . 1 Overload Shots . | . . . Overflow Damage 23 | . 23 . Projectiles . | . . . Explosions 23 | . 23 . Melee . | . . . Knockbacks 3 | . . 3 Impact . | . . . Kinetic 3 | . . 3 Secondary . | . . . Self-Inflicted Damage 105 | . 105 . Shots 4 | . 4 . Rammed 2 | . 2 . Targets Rammed 5 | . 5 . Kicked . | . . . Crushed 3 | . 3 . Highest Temperature 207 | . 207 . Average Temperature 49 | . 49 . Received Heat Transfer 378 | . 270 108 Siege Activations . | . . . Robots Corrupted 2 | . 1 1 Combat Hostiles 1 | . . 1 Parts Fried 5 | . 5 . Impact Corruptions . | . . . Robots Melted . | . . . Combat Hostiles . | . . . Parts Melted . | . . . Heat Transferred 300 | . 300 . Parts Sabotaged . | . . . Parts Stolen . | . . . Parts Stripped . | . . . Power Chain Reactions 6 | . 6 . Alert | -11 -10 -10 ------- Run | Yrd Mat Sub Peak Influence 331 | 10 331 . Initial 6 | . 6 . Average 181 | 6 191 . Maximum Alert Level 1 | . 1 . Low Security (%) 49 | 100 46 . Level 1 50 | . 53 . Level 2 . | . . . Level 3 . | . . . Level 4 . | . . . Level 5 . | . . . High Security . | . . . Max Security . | . . . Squads Dispatched 5 | . 5 . Investigation 4 | . 4 . Extermination . | . . . Reinforcement 1 | . 1 . Assault . | . . . Garrison . | . . . Intercept . | . . . Searches Triggered . | . . . Construction Impeded . | . . . Haulers Reinforced . | . . . Active Scanning Responses . | . . . Cargo Convoy Interrupts . | . . . Stealth | -11 -10 -10 --------- Run | Yrd Mat Sub Distress Signals 1 | . 1 . Communications Jammed . | . . . Distress Signals . | . . . Times Spotted 33 | . 26 7 Peak Tracking Total 5 | . 5 2 Tactical Retreats 1 | . 1 . Traps | -11 -10 -10 ------- Run | Yrd Mat Sub Traps Triggered 1 | . 1 . Indirectly . | . . . Trap Hack Attempts . | . . . Triggered . | . . . Disarmed . | . . . Reprogrammed . | . . . Reused . | . . . Traps Extracted . | . . . Installed . | . . . Triggered . | . . . Machines | -11 -10 -10 ---------- Run | Yrd Mat Sub Machines Disabled 3 | . 3 . Max in Single Turn 1 | . 1 . Machines Repaired . | . . . Machines Dismantled . | . . . Machines Sabotaged . | . . . Overloaded Fab Kills . | . . . Hacking | -11 -10 -10 --------- Run | Yrd Mat Sub Machines Accessed 11 | . 10 1 Terminals 7 | . 7 . Fabricators . | . . . Repair Stations 1 | . 1 . Recycling Units 2 | . 2 . Scanalyzers . | . . . Garrison Access . | . . . Total Hacks 27 | . 22 5 Successful 18 | . 13 5 Failed 9 | . 9 . Catastrophic 1 | . 1 . Database Lockouts . | . . . Manual 16 | . 16 . Terminals 18 | . 18 . Fabricators . | . . . Repair Stations 2 | . 2 . Recycling Units 2 | . 2 . Scanalyzers . | . . . Garrison Access . | . . . Terminal Hacks 9 | . 4 5 Record 5 | . . 5 Robot Schematic 1 | . 1 . Prototype ID Bank 2 | . 2 . Locate Traps 1 | . 1 . Fabricator Hacks . | . . . Repair Station Hacks 2 | . 2 . Scan Component 1 | . 1 . Repair 1 | . 1 . Recycling Unit Hacks . | . . . Scanalyzer . | . . . Garrison Access Hacks . | . . . Unauthorized Hacks 7 | . 7 . Terminals 5 | . 5 . Assimilate 2 | . 2 . Botnet 2 | . 2 . Operators 1 | . 1 . Fabricators . | . . . Repair Stations . | . . . Recycling Units 2 | . 2 . Tunnel 2 | . 2 . Scanalyzers . | . . . Garrison Access . | . . . Data Cores Recovered . | . . . Used . | . . . Hacking Detections 8 | . 8 . Full Trace Events 2 | . 2 . Feedback Events . | . . . Feedback Blocked . | . . . Robot Schematics Acquired 1 | . 1 . Robots Built . | . . . Authchips . | . . . Time . | . . . Total Robot Build Rating . | . . . Part Schematics Acquired . | . . . Parts Built . | . . . Authchips . | . . . Time . | . . . Total Part Build Rating . | . . . Parts Repaired 1 | . 1 . Time 26 | . 26 . Parts Recycled . | . . . Recycled Matter . | . . . Retrieved Matter . | . . . Retrieved Components . | . . . Parts Scanalyzed . | . . . Part Schematics Acquired . | . . . Parts Damaged . | . . . Bothacking | -11 -10 -10 ------------ Run | Yrd Mat Sub Used RIF Installer . | . . . Robots Hacked . | . . . Non-combat . | . . . Combat . | . . . Robot Hacks Applied . | . . . Relay Couplers Released . | . . . Fabnet Peak Effective % . | . . . Robots Rewired . | . . . Allies Hacked . | . . . Hacks Repelled . | . . . Allies | -11 -10 -10 -------- Run | Yrd Mat Sub Total Allies 1 | . 1 . Largest Group 1 | . 1 1 Highest-Rated Group 10 | . 10 10 Highest-Rated Ally 10 | . 10 10 Total Orders 12 | . 2 10 STAY 5 | . 1 4 ROAM 2 | . . 2 FOLLOW 5 | . 1 4 Ally Attacks . | . . . Total Damage . | . . . Kills . | . . . Allies Corrupted . | . . . Allies Melted . | . . . Intel | -11 -10 -10 ------- Run | Yrd Mat Sub Robot Analysis Total . | . . . Derelict Logs Recovered . | . . . Drone Launches . | . . . Drone Recoveries . | . . . Exploration | -11 -10 -10 ------------- Run | Yrd Mat Sub Turns Passed 2830 | 97 1738 995 Spaces Moved 1460 | 46 862 552 Core 2 | 2 . . Treads 278 | 44 234 . Legs . | . . . Wheels 1180 | . 628 552 Hover . | . . . Flight . | . . . Fastest Speed 50 | 50 115 119 Average Speed 154 | 155 160 145 Slowest Speed 240 | 160 240 200 Overloaded Moves . | . . . Propulsion Burnouts . | . . . Robots Hopped . | . . . Cave-ins Triggered . | . . . Exploration Rate (%) 49 | 4 99 44 Regions Visited 2 Branch Regions 1 Pre-discovered Areas 2 | . 2 . Known Exits Taken . | . . . Unknown Exits Taken 2 | 1 1 . Scrap Searched . | . . . Spaces Dug . | . . . Terrain Destroyed 21 | . 21 . Melee . | . . . Projectile . | . . . AOE 21 | . 21 . Terrain Rammed . | . . . Walls Destroyed . | . . . Machines Disabled . | . . . Actions | -11 -10 -10 --------- Run | Yrd Mat Sub Total 1808 | 62 1092 654 Wait 156 | . 129 27 Move 1458 | 45 861 552 Hop . | . . . Pick Up 25 | 6 15 4 Fast Attach 12 | 5 5 2 Attach 12 | 2 2 8 Detach 4 | . 2 2 Swap 22 | . 8 14 Drop 3 | . 3 . Fire 100 | 4 62 34 Melee 11 | . . 11 Ram 1 | . 1 . Kick . | . . . Crush 4 | . 4 . Escape Stasis . | . . . Rewire . | . . . Trap . | . . . Miscellaneous . | . . . Route ------- -11/Scrapyard -10/Materials (discovered 6 exits: [*Mat x3] / [*Min x2] / *Sub) -10/Subcaves History --------- Turn | Location | Event 7 | -11/Scrapyard | Discovered new exit (range 15) 98 | -11/Scrapyard | Entered Materials 212 | -10/Materials | Discovered new exit (range 7) 301 | -10/Materials | Build established: Mutant 582 | -10/Materials | Discovered new exit (range 14) 704 | -10/Materials | Discovered new exit (range 15) 805 | -10/Materials | Repaired Lgt. Treads 830 | -10/Materials | Discovered new exit (range 6) 1010 | -10/Materials | Discovered new exit (range 16) 1816 | -10/Materials | Discovered new exit (range 8) 1836 | -10/Materials | Entered Subcaves 1836 | -10/Subcaves | Accompanied by 1 ally 1935 | -10/Subcaves | A swath of the cavern ceiling suddenly collapsed 2040 | -10/Subcaves | Shifting Twisted Machinery released Battle Cannon 2416 | -10/Subcaves | Core integrity fell below 50% 2429 | -10/Subcaves | Core integrity fell below 20% 2465 | -10/Subcaves | Lost 5 parts (2p1u2w) 2497 | -10/Subcaves | Shifting Twisted Machinery released Sub. Beam Cannon 2506 | -10/Subcaves | Shifting Twisted Machinery released Sub. Beam Cannon 2739 | -10/Subcaves | Visited Clippyterm 2742 | -10/Subcaves | Learned Factory emergency access door positions 2831 | -10/Subcaves | Destroyed by RJ-W2G(R) with Subdweller Laser Last Messages --------------- still manages to suggest unhelpful sample queries and responses. --DD-NU8 >>Record! "Letterhead" It looks like you're writing a letter, sorry I don't know how to do that. >>Record! "Early Bird" It looks like you're searching for a worm, right? Don't bother with early when it comes to the Lifeworm, it's never early, but by some measures it might be just in time... 02742_ Connecting with Clippyterm... >>Record "Hexidium" It looks like you're searching for the Unchained HQ. I could tell you where it is but then I'd have to kill you. 02807_ Technician 1a destroyed. 02810_ Integrated Corrupted Lgt. Treads (+7). 02819_ System corrupted: Component data lost. 02823_ 05-738(R) knocked back. 02826_ LV-ADC(u) tweaks Twisted Machinery. Map ----- +----------------------------------------------------+ | ?????????????????????????????????????????????????? | | ?????????????????????????????????????????????????? | | ?????????????????????????????????????????????????? | | ?????????????????????????????????????????????????? | | ?????????????????????????????????????????????????? | | ?????????????????????????????????????????????????? | | ?????????????????????????????????????????????????? | | ?????????????????????????????????????????????????? | | ?????????????????????????????????????????????????? | | ?????????????????????????????????????????????????? | | ?????????????????????????????????????????????????? | | ?????????????????????????????????????????????????? | | ?????????????????????????????????????????????????? | | ?????????????????????????????????????????????????? | | ???????????? #???????????????????????????????????? | | ??????????? #??????????????????????????????????? | | ??????????? ??????????????????????????????????? | | ??????????? #?????????????????????????????????? | | ??????????? #?????????#####??????????????????? | | ???????????? ??????##### ##?????????????????? | | ???????????? ??????# ##????????????????? | | ???????????? ??????# ##???????????????? | | ???????????? ??????# #???????????????? | | ????????????# #??????# % % #???????????????? | | ???????????? ????### R ##?????"????????? | | ???????????## #????# @ R ###""""????????? | | ???????????? ##???## ###=/ """ ? ??????? | | ????????????# #????#????#!%* u"" ?????? | | ???????????## #??###???## = "" ????? | | ???????????# #?? ##?## ##" ?????? | | ??########### ##?? ### ##?? ?????? | | ??#"""## ### ## #????? ?????? | | ??#"" ## ## #?# ####?# """??????? | | ??#"X #?## " ## """??????? | | ??#"" ## ##?# ## ""???????? | | ??#"""### #?## ### #????????? | | ??##### ### #?# #????????? | | ??????# ## #?## #????????? | | ??????# ###### #?## #?????????? | | ??????####????# # ####### #??????????? | | ??????????????# # ##?## ##??????????? | | ?????????????## ## ### ### ##??????????? | | ?????????????# ## ##?# #??????????? | | ?????????????# ## ###??# #??????????? | | ?????????????## # ## #????## ##??????????? | | ????????????### # ####?????# ##??????????? | | ????????????# #??????### #??????????? | | ????????????# ##?????## ##??????????? | | ????????????# ##?????## #???????????? | | ????????????# ##??????# ##??????????? | +----------------------------------------------------+ Best States ------------- Heat Dissipation 25 Energy Generation 10 Energy Capacity 250 Matter Stores 300 Matter Capacity 300 Sight Range 16 Terrain Scan Range 16 Terrain Scan Density 10 Armor Coverage 150 Evasion (%) 40 Recoil Reduction 2 Item Schematics ----------------- None Robot Schematics ------------------ M-13 Machinist | -10/Materials | Hacked Fabricated ------------ Nothing Alien Tech Used ----------------- None Achievements -------------- None Challenges ------------ None Game ------ Seed PlasmaSupersonicSuperbattery Manual? 0 Play Time 00:19:08 Cumulative 430.6 hours Start 2024.03.09 @ 13:39:25 End 2024.03.09 @ 13:58:28 Sessions 1 Manual Loads 0 Difficulty Rogue Special Mode None Game No. 198 Rogue 198 Adventurer 0 Explorer 0 Win Type - Total 10 Types 7/0/1/1/0/0/0/1/0 Lore% 86 Gallery% 92 Achievement% 71 Wizard Run 0 Options --------- Layout 2 ASCII 0 Keyboard 1 Movement Vi Keybinds 0 Fullscreen 2 Font 18/Cog Map View 50x49 Zoom Use 2% Tactical HUD 1 Map Filters NONE Filters NONE Steam 0 RUN: 0abae391-b5fb-4844-8ad6-41da7a628cf6